bitfinex-derivatives/quotes_SOLF0:USTF0_20250522
["timestamp","ask_amount","ask_price","bid_price","bid_amount"]
[1747895980722,9.20494918,175.93,175.85,125.94]
[1747895981216,0.04278263,175.91,175.87,0.04225427]
[1747895981417,5.6841,175.9,175.87,0.04225427]
[1747895982222,5.6844,175.89,175.87,0.04225427]
[1747895983320,0.04278263,175.91,175.87,0.04225427]
[1747895983530,0.04278263,175.91,175.87,5.72705427]
[1747895983822,0.04278263,175.91,175.87,0.04225427]
[1747895985621,5.6847,175.88,175.87,0.04225427]
[1747895987423,0.04278263,175.91,175.87,0.04225427]
[1747895988128,5.6841,175.9,175.87,0.04225427]
[1747895988329,0.04278263,175.91,175.87,0.04225427]
[1747895989235,5.6846,175.89,175.87,0.04225427]
[1747895989733,5.6847,175.88,175.87,0.04225427]
[1747895994133,0.04278263,175.91,175.87,0.04225427]
[1747895994736,5.6843,175.9,175.87,0.04225427]
[1747895995135,5.6843,175.9,175.87,5.72725427]
[1747895995331,5.72658263,175.91,175.87,5.72725427]
[1747895995533,0.04278263,175.91,175.87,5.72725427]
[1747895995834,5.6845,175.89,175.87,0.04225427]
[1747895998035,5.6847,175.88,175.87,0.04225427]
[1747895999037,5.6845,175.89,175.87,0.04225427]
[1747895999539,0.04278263,175.91,175.87,0.04225427]
[1747896000137,5.6847,175.88,175.87,0.04225427]
[1747896000638,0.04278263,175.91,175.87,0.04225427]
[1747896001939,5.6845,175.89,175.87,0.04225427]
[1747896003249,0.04278263,175.91,175.87,0.04225427]
[1747896004945,5.72678263,175.91,175.87,5.72715427]
[1747896005144,0.04278263,175.91,175.87,0.04225427]
[1747896005749,5.6844,175.89,175.87,0.04225427]
[1747896006448,5.6847,175.88,175.87,0.04225427]
[1747896007743,0.04278263,175.91,175.87,0.04225427]
[1747896008351,0.04278263,175.91,175.89,5.6841]
[1747896008553,0.04278263,175.91,175.87,0.04225427]
[1747896008851,10.91884918,175.97,175.92,5.6831]
[1747896009446,10.91884918,175.97,175.93,5.683]
[1747896009651,5.23684918,175.97,175.9,7.35650355]
[1747896009853,5.23684918,175.97,175.92,0.04305424]
[1747896010049,125.58,176.0,175.92,0.04305424]
[1747896010255,125.58,176.0,175.92,5.72625424]
[1747896010952,5.6823,175.96,175.92,5.72625424]
[1747896011152,125.58,176.0,175.92,0.04305424]
[1747896011348,3.9465,175.99,175.92,0.04305424]
[1747896012460,3.9465,175.99,175.84,3.44654253]
[1747896012654,108.04,175.98,175.84,3.44654253]
[1747896012855,7.35650355,175.92,175.84,3.44654253]
[1747896013056,129.1893,175.91,175.84,3.44654253]
[1747896013256,129.1893,175.91,175.82,4.55216594]
[1747896013452,129.1893,175.91,175.85,0.04267805]
[1747896013656,0.03590013,175.88,175.85,0.04267805]
[1747896013853,5.685,175.87,175.85,0.04267805]
[1747896014052,125.22,175.86,175.85,0.04267805]
[1747896014370,125.22,175.86,175.76,129.1814]
[1747896014860,125.22,175.86,175.75,2.0836]
[1747896015357,0.03595348,175.82,175.79,0.03898695]
[1747896017960,0.03595348,175.82,175.79,5.72648695]
[1747896018262,0.03595348,175.82,175.79,0.03898695]
[1747896021857,0.03595348,175.82,175.8,5.6869]
[1747896023066,0.03595348,175.82,175.81,5.6869]
[1747896023367,616.54,175.9,175.79,4.07758695]
[1747896023558,5.6853,175.87,175.79,4.0386]
[1747896023760,616.54,175.9,175.79,4.0386]
[1747896024261,5.72312652,175.86,175.83,0.04321866]
[1747896024459,0.03752652,175.86,175.83,0.04321866]
[1747896024968,5.6857,175.85,175.83,0.04321866]
[1747896025869,5.686,175.84,175.83,0.04321866]
[1747896041390,5.686,175.84,175.83,1.866e-05]
[1747896050093,130.9658,175.85,175.83,1.866e-05]
[1747896050391,5.6858,175.85,175.83,1.866e-05]
[1747896050789,0.03752652,175.86,175.83,1.866e-05]
[1747896051994,0.03752652,175.86,175.84,5.6857]
[1747896053594,0.03752652,175.86,175.85,5.6857]
[1747896053994,0.03752652,175.86,175.83,1.866e-05]
[1747896054195,0.03752652,175.86,175.84,5.6857]
[1747896054698,0.03752652,175.86,175.85,5.6857]
[1747896056895,0.03752652,175.86,175.83,1.866e-05]
[1747896056896,130.37684918,175.94,175.84,136.64760355]
[1747896057092,5.23684918,175.94,175.84,136.64760355]
[1747896057288,10.91984918,175.94,175.91,5.6837]
[1747896057700,5.23684918,175.94,175.87,1.9686]
[1747896057998,0.03828011,175.92,175.88,7.3981696]
[1747896058500,0.03828011,175.92,175.89,125.12]
[1747896058895,0.03828011,175.92,175.91,5.6837]
[1747896059901,0.03828011,175.92,175.9,5.6839]
[1747896060502,0.03828011,175.92,175.91,5.6837]
[1747896064403,125.14,175.98,175.89,132.47650355]
[1747896064600,5.6812,175.99,175.89,132.47650355]
[1747896064801,621.79684918,176.02,175.89,132.47650355]
[1747896064997,5.6807,176.01,175.97,5.6817]
[1747896065300,0.02131655,176.01,175.97,0.03935928]
[1747896066100,0.02131655,176.01,175.98,5.6812]
[1747896066507,0.02131655,176.01,175.97,0.03935928]
[1747896067005,0.02131655,176.01,175.98,5.6812]
[1747896067504,0.02131655,176.01,176.0,5.6808]
[1747896068006,0.02131655,176.01,175.99,5.681]
[1747896068798,0.02131655,176.01,175.98,5.6814]
[1747896068995,0.02131655,176.01,175.97,0.03935928]
[1747896070207,5.6809,176.0,175.97,0.03935928]
[1747896070404,0.02131655,176.01,175.97,0.03935928]
[1747896072107,5.6814,175.99,175.97,0.03935928]
[1747896073408,5.6815,175.98,175.97,0.03935928]
[1747896073801,124.86131655,176.01,175.86,132.19650355]
[1747896074001,5.6838,175.91,175.84,132.19650355]
[1747896074203,124.84,175.96,175.85,1.9831]
[1747896074806,124.84,175.96,175.89,0.03735796]
[1747896075010,0.03677151,175.92,175.89,0.03735796]
[1747896075402,5.684,175.9,175.89,0.03735796]
[1747896076706,5.72037151,175.92,175.89,0.03735796]
[1747896077109,0.03677151,175.92,175.89,0.03735796]
[1747896077906,5.6837,175.91,175.89,0.03735796]
[1747896078111,0.03677151,175.92,175.89,0.03735796]
[1747896079305,0.03677151,175.92,175.89,124.89735796]
[1747896079812,0.03677151,175.92,175.91,5.6837]
[1747896082210,5.6821,175.96,175.92,5.6832]
[1747896082915,615.96,176.0,175.91,5.6835]
[1747896083107,615.96,176.0,175.89,124.86]
[1747896083108,615.96,176.0,175.94,0.04134431]
[1747896083312,0.02390432,175.97,175.94,0.04134431]
[1747896085717,130.07684918,176.07,175.95,124.84]
[1747896086009,130.07684918,176.07,175.95,126.9105]
[1747896086214,5.6801,176.03,175.98,5.6812]
[1747896086405,130.07684918,176.07,175.95,126.9105]
[1747896086610,5.6801,176.03,175.99,0.03586116]
[1747896087010,130.07684918,176.07,175.99,0.03586116]
[1747896087310,124.84,176.07,175.99,0.03586116]
[1747896087618,5.6797,176.04,175.99,5.71696116]
[1747896088117,124.84,176.07,175.99,5.71696116]
[1747896089215,5.6797,176.04,175.99,5.71696116]
[1747896089617,124.84,176.07,175.99,0.03586116]
[1747896090220,5.6801,176.03,175.99,0.03586116]
[1747896090417,124.84,176.07,175.99,0.03586116]
[1747896090807,5.6805,176.01,175.99,0.03586116]
[1747896091019,124.84,176.07,175.99,0.03586116]
[1747896092215,2.0095,176.08,175.99,0.03586116]
[1747896092414,491.18,176.09,175.99,0.03586116]
[1747896092718,5.6785,176.08,176.04,5.6793]
[1747896093017,5.6785,176.08,176.04,5.72284689]
[1747896094916,130.4977,176.1,176.06,5.6788]
[1747896095219,124.82,176.1,176.04,0.04354689]
[1747896095923,5.6788,176.07,176.04,0.04354689]
[1747896096324,124.82,176.1,176.04,0.04354689]
[1747896096719,5.6785,176.08,176.04,5.72284689]
[1747896096927,124.8,176.13,176.04,0.04354689]
[1747896097529,124.8,176.13,176.05,7.35650355]
[1747896097820,124.8,176.13,176.05,132.15650355]
[1747896098126,5.6772,176.12,176.08,5.6782]
[1747896098325,5.6772,176.12,176.08,5.71968384]
[1747896098927,5.6773,176.11,176.08,5.71968384]
[1747896099229,124.8,176.13,176.09,5.6778]
[1747896099427,5.6771,176.12,176.08,0.04148384]
[1747896100127,5.6771,176.12,176.08,5.71968384]
[1747896100728,5.6774,176.11,176.08,5.71968384]
[1747896101121,124.8,176.13,176.08,5.71968384]
[1747896101729,5.6772,176.12,176.09,5.6779]
[1747896103529,5.6772,176.12,176.08,5.71958384]
[1747896104633,5.6773,176.11,176.08,5.71958384]
[1747896104929,124.8,176.13,176.08,0.04148384]
[1747896105129,5.6779,176.09,176.08,0.04148384]
[1747896106131,5.6776,176.1,176.08,0.04148384]
[1747896106335,124.8,176.13,176.08,0.04148384]
[1747896108630,5.6776,176.1,176.08,0.04148384]
[1747896108833,124.8,176.13,176.08,0.04148384]
[1747896109335,5.6775,176.11,176.08,5.71968384]
[1747896110329,124.8,176.13,176.08,0.04148384]
[1747896110732,5.6779,176.09,176.08,0.04148384]
[1747896110933,124.8,176.13,175.98,128.7276]
[1747896111233,2.0368,176.12,175.99,5.6811]
[1747896111428,2.0368,176.12,175.98,128.7276]
[1747896111624,109.9568,176.12,175.98,128.7276]
[1747896111936,0.03894679,176.07,176.03,0.04013183]
[1747896112236,124.63894679,176.07,176.03,0.04013183]
[1747896113038,5.6795,176.04,176.03,0.04013183]
[1747896114641,5.6795,176.04,176.03,3.183e-05]
[1747896157379,130.0993,176.05,176.03,3.183e-05]
[1747896157677,5.27579597,176.07,176.03,3.183e-05]
[1747896157873,10.95459597,176.07,176.03,3.183e-05]
[1747896158078,10.95459597,176.07,176.04,5.6795]
[1747896158270,5.27579597,176.07,176.03,3.183e-05]
[1747896159079,5.27579597,176.07,176.04,5.6793]
[1747896159385,5.6783,176.08,176.03,3.183e-05]
[1747896159880,5.6783,176.08,176.05,5.6791]
[1747896160276,5.6786,176.07,176.04,5.6794]
[1747896160477,0.04196237,176.07,176.03,3.183e-05]
[1747896163879,0.04196237,176.07,176.06,5.6789]
[1747896164080,124.42,176.13,176.04,131.77650355]
[1747896164387,5.6771,176.12,176.04,131.77650355]
[1747896165085,5.6771,176.12,176.06,0.04102862]
[1747896165290,5.6771,176.12,176.08,5.678]
[1747896166490,5.6771,176.12,176.09,5.6779]
[1747896166683,124.42,176.13,176.09,5.6779]
[1747896166883,124.1,176.17,176.07,7.35650355]
[1747896167082,124.1,176.17,176.1,0.04016351]
[1747896167384,124.1,176.17,176.11,5.677]
[1747896167889,5.6762,176.15,176.11,5.677]
[1747896168086,5.6762,176.15,176.12,5.6768]
[1747896168291,5.6756,176.17,176.12,5.6768]
[1747896168487,111.54035079,176.18,176.1,0.04016351]
[1747896169082,5.6757,176.16,176.12,5.6767]
[1747896169283,5.6757,176.16,176.1,0.04016351]
[1747896169588,104.56761241,176.18,176.1,0.04016351]
[1747896169892,5.6756,176.17,176.1,0.04016351]
[1747896170688,5.6756,176.17,176.13,5.6766]
[1747896170884,5.6757,176.16,176.1,0.04016351]
[1747896171189,104.56761241,176.18,176.1,0.04016351]
[1747896172093,110.24271241,176.18,176.1,0.04016351]
[1747896172294,104.56761241,176.18,176.1,0.04016351]
[1747896173093,110.24281241,176.18,176.14,5.6762]
[1747896173298,5.6752,176.18,176.14,5.71369253]
[1747896173486,109.9782,176.25,176.14,0.03749253]
[1747896173487,2.0582,176.25,176.14,0.03749253]
[1747896173687,124.08,176.24,176.18,0.03945089]
[1747896174292,5.6744,176.2,176.18,0.03945089]
[1747896174694,124.08,176.24,176.18,0.03945089]
[1747896175595,5.674,176.22,176.18,0.03945089]
[1747896175898,1.9005,176.28,176.18,0.03945089]
[1747896176091,124.06,176.29,176.18,0.03945089]
[1747896176392,124.06,176.29,176.22,0.03761218]
[1747896177499,5.6728,176.25,176.22,0.03761218]
[1747896179300,124.06,176.29,176.22,0.03761218]
[1747896180291,5.673,176.25,176.22,0.03761218]
[1747896180493,124.06,176.29,176.22,0.03761218]
[1747896180798,5.6728,176.25,176.22,0.03761218]
[1747896181299,5.6725,176.26,176.22,0.03761218]
[1747896181491,124.06,176.29,176.22,0.03761218]
[1747896181991,5.6721,176.27,176.22,5.71111218]
[1747896182301,5.6721,176.27,176.22,0.03761218]
[1747896182900,124.06,176.29,176.22,0.03761218]
[1747896183197,5.6727,176.26,176.22,5.71111218]
[1747896183395,5.6727,176.26,176.22,0.03761218]
[1747896184001,124.06,176.29,176.22,0.03761218]
[1747896184496,5.6734,176.23,176.22,0.03761218]
[1747896187499,5.6734,176.23,176.16,5.8684]
[1747896187500,124.0,176.24,176.14,124.0]
[1747896187704,127.9458,176.23,176.14,129.6761]
[1747896187906,5.6753,176.18,176.14,129.6761]
[1747896188104,124.0,176.22,176.14,129.6761]
[1747896188300,124.0,176.22,176.14,124.0]
[1747896188508,5.6753,176.17,176.16,0.04171371]
[1747896190810,5.6751,176.18,176.16,0.04171371]
[1747896191107,0.03828686,176.2,176.16,0.04171371]
[1747896192308,5.6749,176.19,176.16,0.04171371]
[1747896192706,0.03828686,176.2,176.16,0.04171371]
[1747896193008,5.6753,176.17,176.16,0.04171371]
[1747896197317,5.6751,176.18,176.16,0.04171371]
[1747896197613,0.03828686,176.2,176.16,0.04171371]
[1747896198315,5.6751,176.18,176.16,0.04171371]
[1747896198817,5.6753,176.17,176.16,0.04171371]
[1747896199612,5.6751,176.18,176.16,0.04171371]
[1747896200815,5.6753,176.17,176.16,0.04171371]
[1747896201120,0.03828686,176.2,176.16,0.04171371]
[1747896201322,5.6752,176.18,176.16,0.04171371]
[1747896201813,5.6753,176.17,176.16,0.04171371]
[1747896205317,0.03828686,176.2,176.16,0.04171371]
[1747896206317,0.03828686,176.2,176.19,5.6747]
[1747896206516,125.8853,176.27,176.16,7.39821726]
[1747896206718,123.8,176.27,176.16,11.39510355]
[1747896207219,125.833,176.31,176.2,7.35650355]
[1747896207514,125.833,176.31,176.24,0.0408967]
[1747896208613,5.6715,176.29,176.25,5.6725]
[1747896209420,5.6715,176.29,176.24,5.7138967]
[1747896209720,125.833,176.31,176.24,0.0408967]
[1747896210922,5.6717,176.29,176.24,5.7136967]
[1747896212119,5.6718,176.28,176.24,5.7136967]
[1747896213123,125.833,176.31,176.27,5.6721]
[1747896213124,129.4711,176.31,176.27,5.6721]
[1747896213424,123.8,176.31,176.24,0.0408967]
[1747896213720,5.6714,176.3,176.25,5.6725]
[1747896213916,123.8,176.31,176.25,5.6725]
[1747896214119,123.8,176.31,176.24,0.0408967]
[1747896214921,5.6728,176.25,176.24,0.0408967]
[1747896219628,129.4325,176.26,176.24,0.0408967]
[1747896220927,123.76,176.26,176.24,0.0408967]
[1747896221428,123.76,176.3,176.24,0.0408967]
[1747896221627,5.6721,176.28,176.24,5.7138967]
[1747896222023,5.6722,176.27,176.24,0.0408967]
[1747896222627,5.6722,176.27,176.24,5.7139967]
[1747896222825,123.76,176.3,176.24,0.0408967]
[1747896223519,5.6728,176.25,176.24,0.0408967]
[1747896223720,129.4328,176.25,176.24,0.0408967]
[1747896223923,123.76,176.25,176.18,5.675]
[1747896224428,5.674,176.22,176.18,5.675]
[1747896224929,5.7148967,176.22,176.18,5.71240423]
[1747896225829,0.0408967,176.22,176.18,0.03740423]
[1747896226522,5.7146967,176.22,176.18,5.71230423]
[1747896226827,5.7146967,176.22,176.18,0.03740423]
[1747896227122,0.0408967,176.22,176.18,0.03740423]
[1747896227327,0.0408967,176.22,176.19,5.6744]
[1747896228219,0.0408967,176.22,176.18,0.03740423]
[1747896228829,5.6741,176.21,176.18,5.71220423]
[1747896231428,5.7146967,176.22,176.18,5.71220423]
[1747896234431,5.7146967,176.22,176.19,5.6746]
[1747896235126,0.0408967,176.22,176.2,5.6743]
[1747896237124,0.0408967,176.22,176.19,5.6746]
[1747896237327,0.0408967,176.22,176.18,0.03740423]
[1747896238127,5.6743,176.21,176.18,5.71240423]
[1747896238530,5.6743,176.21,176.18,0.03740423]
[1747896239735,5.6743,176.21,176.18,5.71230423]
[1747896240034,5.6744,176.2,176.18,0.03740423]
[1747896244440,0.0408967,176.22,176.18,5.71240423]
[1747896244733,0.0408967,176.22,176.18,0.03740423]
[1747896245134,5.7148967,176.22,176.18,5.71220423]
[1747896245340,5.7148967,176.22,176.18,0.03740423]
[1747896245737,5.7148967,176.22,176.19,5.6747]
[1747896246936,0.0408967,176.22,176.18,0.03740423]
[1747896247934,0.0408967,176.22,176.2,5.6743]
[1747896249923,0.0408967,176.22,176.21,5.6741]
[1747896256339,5.2840995,176.26,176.25,5.6728]
[1747896256537,5.2840995,176.26,176.19,13.28710355]
[1747896256733,10.9567995,176.26,176.19,5.9306]
[1747896256939,5.2840995,176.26,176.19,5.9306]
[1747896257341,5.673,176.25,176.21,0.03588094]
[1747896257643,123.62,176.29,176.21,0.03588094]
[1747896257938,5.6727,176.26,176.21,0.03588094]
[1747896258242,5.6727,176.26,176.22,5.6736]
[1747896258740,5.6728,176.25,176.22,5.6736]
[1747896259640,5.6732,176.24,176.21,5.70988094]
[1747896260942,5.6729,176.25,176.21,5.70988094]
[1747896261141,5.6729,176.25,176.22,5.6737]
[1747896261442,5.6729,176.25,176.21,0.03588094]
[1747896261740,128.9040995,176.29,176.21,5.70988094]
[1747896262240,128.9040995,176.29,176.21,0.03588094]
[1747896262934,5.6731,176.24,176.21,0.03588094]
[1747896263343,5.6731,176.24,176.21,5.70988094]
[1747896263642,128.9040995,176.29,176.21,5.70988094]
[1747896263940,5.2840995,176.27,176.21,5.70988094]
[1747896264143,5.6732,176.24,176.21,0.03588094]
[1747896265040,5.6737,176.23,176.21,0.03588094]
[1747896266944,5.6737,176.22,176.21,0.03588094]
[1747896267243,5.2840995,176.26,176.21,0.03588094]
[1747896268144,5.6733,176.24,176.21,0.03588094]
[1747896268446,5.6733,176.24,176.21,5.70988094]
[1747896268944,123.4,176.25,176.21,5.70988094]
[1747896269447,123.4,176.25,176.21,0.03588094]
[1747896270245,123.4,176.25,176.21,5.70988094]
[1747896270543,129.073,176.25,176.21,5.70988094]
[1747896271648,129.073,176.25,176.22,5.6737]
[1747896273648,123.4,176.25,176.22,5.6737]
[1747896274348,123.4,176.25,176.23,5.6732]
[1747896274550,123.4,176.25,176.21,0.03588094]
[1747896274848,5.2840995,176.26,176.21,0.03588094]
[1747896275049,5.2840995,176.26,176.24,5.673]
[1747896275548,10.9565995,176.26,176.24,5.673]
[1747896275748,10.9565995,176.26,176.23,5.6734]
[1747896276648,5.2840995,176.26,176.23,5.6734]
[1747896277249,5.6722,176.27,176.23,5.6734]
[1747896278049,5.2840995,176.28,176.21,0.03588094]
[1747896278654,10.9559995,176.28,176.25,5.6727]
[1747896278947,5.2840995,176.28,176.25,5.71075103]
[1747896279138,5.2840995,176.28,176.25,0.03805103]
[1747896280152,5.2840995,176.28,176.27,5.6721]
[1747896280649,5.6715,176.29,176.26,5.6724]
[1747896281648,5.6713,176.3,176.26,5.6724]
[1747896281849,5.6713,176.3,176.27,5.6721]
[1747896283348,5.6716,176.29,176.26,5.6724]
[1747896283551,5.6716,176.29,176.25,0.03805103]
[1747896284052,5.6716,176.29,176.25,5.71055103]
[1747896284252,5.6712,176.3,176.25,0.03805103]
[1747896284451,128.6840995,176.33,176.25,0.03805103]
[1747896284850,5.6714,176.3,176.25,0.03805103]
[1747896285152,128.6840995,176.33,176.26,5.6724]
[1747896285550,5.6714,176.3,176.26,5.6724]
[1747896285853,128.6840995,176.33,176.26,5.6724]
[1747896286052,5.6711,176.31,176.27,5.6721]
[1747896286252,128.6840995,176.33,176.27,5.6721]
[1747896286656,5.2840995,176.32,176.27,5.6721]
[1747896287354,5.6714,176.3,176.26,5.6724]
[1747896287556,5.2840995,176.32,176.25,0.03805103]
[1747896288556,5.6713,176.3,176.27,5.6719]
[1747896290860,5.6709,176.31,176.27,5.6719]
[1747896291760,5.6712,176.3,176.27,5.6719]
[1747896291960,128.6840995,176.33,176.27,5.6719]
[1747896292459,5.6709,176.31,176.27,5.6719]
[1747896293463,5.6712,176.3,176.27,5.6719]
[1747896293763,128.6840995,176.33,176.25,0.03805103]
[1747896294260,5.6711,176.31,176.27,5.6719]
[1747896296369,5.6711,176.31,176.28,5.6718]
[1747896296666,5.6711,176.31,176.25,0.03805103]
[1747896296865,133.35810915,176.33,176.25,0.03805103]
[1747896296866,134.3543995,176.33,176.29,5.6713]
[1747896297067,128.6840995,176.33,176.29,5.70816946]
[1747896297255,128.6840995,176.33,176.29,0.03686946]
[1747896297968,5.6709,176.31,176.29,0.03686946]
[1747896300066,5.6712,176.3,176.29,0.03686946]
[1747896301471,5.6724,176.27,176.22,4.67400965]
[1747896301769,4.67400965,176.29,176.21,129.0738]
[1747896302064,4.67400965,176.29,176.22,5.6737]
[1747896302462,1.9206,176.3,176.24,4.67400965]
[1747896302661,0.03686946,176.27,176.24,10.38305154]
[1747896303164,0.03686946,176.27,176.25,5.6727]
[1747896303362,0.03686946,176.27,176.24,0.03614189]
[1747896303567,0.03686946,176.27,176.24,4.71015154]
[1747896304471,0.03686946,176.27,176.25,5.6726]
[1747896305072,0.03686946,176.27,176.26,5.6725]
[1747896305468,0.03686946,176.27,176.24,4.71015154]
[1747896305873,0.03686946,176.27,176.25,5.6725]
[1747896307866,0.03686946,176.27,176.24,0.03614189]
[1747896308969,5.6728,176.25,176.24,0.03614189]
[1747896311376,5.6728,176.25,176.24,4.189e-05]
[1747896312674,5.32096896,176.27,176.24,4.189e-05]
[1747896312675,5.6725,176.26,176.24,4.189e-05]
[1747896313373,0.03686946,176.27,176.24,4.189e-05]
[1747896313772,5.6728,176.25,176.24,4.189e-05]
[1747896325082,123.25686946,176.27,176.24,4.189e-05]
[1747896326186,5.6727,176.26,176.24,4.189e-05]
[1747896327185,123.25686946,176.27,176.24,4.189e-05]
[1747896327386,0.03686946,176.27,176.24,4.189e-05]
[1747896328185,0.03686946,176.27,176.24,5.67294189]
[1747896328381,0.03686946,176.27,176.24,4.189e-05]
[1747896329588,5.70906946,176.27,176.24,5.67294189]
[1747896329982,0.03686946,176.27,176.24,4.189e-05]
[1747896330290,0.03686946,176.27,176.26,5.6725]
[1747896330885,5.2840995,176.31,176.25,3.9342]
[1747896331483,618.8440995,176.35,176.25,3.9342]
[1747896331686,0.0361,176.32,176.28,5.71141533]
[1747896332485,0.0361,176.32,176.29,5.6715]
[1747896333288,0.0361,176.32,176.3,5.671]
[1747896334488,0.0361,176.32,176.31,5.6709]
[1747896335281,5.2840995,176.37,176.33,5.6702]
[1747896335482,10.9532995,176.37,176.33,5.6702]
[1747896336389,10.9532995,176.37,176.33,5.70625726]
[1747896336684,10.9532995,176.37,176.34,5.6699]
[1747896336685,5.2840995,176.37,176.34,5.6699]
[1747896336988,5.6687,176.38,176.34,5.6699]
[1747896337189,123.02,176.39,176.34,5.6699]
[1747896337489,123.02,176.39,176.33,0.03605726]
[1747896337686,5.2840995,176.41,176.33,0.03605726]
[1747896337891,10.9520995,176.41,176.37,5.6688]
[1747896338092,10.9520995,176.41,176.37,0.04142305]
[1747896338388,5.2840995,176.41,176.38,5.6685]
[1747896338588,5.2840995,176.41,176.37,0.04142305]
[1747896339194,5.2840995,176.41,176.38,5.6686]
[1747896339494,5.2840995,176.41,176.37,0.04142305]
[1747896339684,5.2840995,176.41,176.37,5.71012305]
[1747896339685,10.9519995,176.41,176.37,5.71012305]
[1747896340193,5.6679,176.41,176.37,5.71012305]
[1747896340692,5.6674,176.42,176.38,5.6685]
[1747896340894,5.6674,176.42,176.37,0.04142305]
[1747896341094,122.98,176.47,176.37,0.04142305]
[1747896341388,122.98,176.47,176.4,0.03818159]
[1747896343593,5.6672,176.43,176.4,0.03818159]
[1747896344193,5.6674,176.42,176.4,0.03818159]
[1747896344388,122.98,176.47,176.4,0.03818159]
[1747896344690,5.6672,176.43,176.4,0.03818159]
[1747896345498,5.6672,176.43,176.4,5.70608159]
[1747896345686,5.6668,176.44,176.4,0.03818159]
[1747896345884,3.9998,176.5,176.4,0.03818159]
[1747896346087,122.94,176.49,176.4,0.03818159]
[1747896346692,5.667,176.44,176.4,0.03818159]
[1747896347185,122.94,176.49,176.4,0.03818159]
[1747896347390,5.6666,176.45,176.4,5.70588159]
[1747896348395,5.6667,176.44,176.4,5.70588159]
[1747896349592,122.94,176.49,176.4,5.70588159]
[1747896349796,5.667,176.43,176.4,0.03818159]
[1747896350000,122.94,176.49,176.4,0.03818159]
[1747896350801,5.6671,176.43,176.4,0.03818159]
[1747896351299,5.6668,176.44,176.4,0.03818159]
[1747896351901,5.6668,176.44,176.4,5.70608159]
[1747896352102,5.6668,176.44,176.4,0.03818159]
[1747896352302,5.6668,176.44,176.4,5.70608159]
[1747896352596,122.94,176.49,176.4,5.70608159]
[1747896353502,122.94,176.49,176.4,0.03818159]
[1747896354607,5.6674,176.42,176.4,0.03818159]
[1747896354997,122.94,176.49,176.4,0.03818159]
[1747896356104,5.6666,176.45,176.4,5.70588159]
[1747896356506,122.94,176.49,176.4,5.70588159]
[1747896356700,5.6668,176.44,176.4,0.03818159]
[1747896357901,122.94,176.49,176.4,0.03818159]
[1747896358108,5.6673,176.42,176.4,0.03818159]
[1747896358304,122.94,176.49,176.4,0.03818159]
[1747896358305,130.24823467,176.49,176.4,0.03818159]
[1747896358909,7.30823467,176.45,176.29,2.0946]
[1747896359098,139.9302,176.49,176.28,3.43605359]
[1747896359099,5.6709,176.31,176.28,3.43605359]
[1747896359303,123.64,176.36,176.26,3.43605359]
[1747896359503,127.6891,176.35,176.26,3.43605359]
[1747896359909,0.0373678,176.32,176.29,0.0391625]
[1747896360311,5.7079678,176.32,176.29,0.0391625]
[1747896360606,0.0373678,176.32,176.29,0.0391625]
[1747896365813,5.7081678,176.32,176.29,0.0391625]
[1747896367209,5.6711,176.31,176.29,0.0391625]
[1747896368409,5.6712,176.3,176.29,0.0391625]
[1747896370118,0.0373678,176.32,176.29,0.0391625]
[1747896370711,0.0373678,176.32,176.3,5.6709]
[1747896371218,0.0373678,176.32,176.29,0.0391625]
[1747896372110,0.0373678,176.32,176.29,5.7103625]
[1747896372620,0.0373678,176.32,176.29,0.0391625]
[1747896374116,0.0373678,176.32,176.3,5.6711]
[1747896374419,0.0373678,176.32,176.29,0.0391625]
[1747896376514,0.0373678,176.32,176.29,123.7391625]
[1747896376820,128.9840995,176.41,176.29,244.50739717]
[1747896377015,128.9840995,176.41,176.29,238.78823467]
[1747896377822,123.7,176.41,176.33,0.03759595]
[1747896378014,123.7,176.41,176.34,123.7]
[1747896378316,129.3677,176.41,176.34,123.7]
[1747896379321,129.3677,176.41,176.37,5.6687]
[1747896379622,129.3677,176.41,176.37,0.0381779]
[1747896379920,5.6686,176.38,176.37,0.0381779]
[1747896381422,123.7,176.41,176.37,0.0381779]
[1747896382226,5.6685,176.39,176.37,0.0381779]
[1747896382419,123.7,176.41,176.37,0.0381779]
[1747896382725,5.6685,176.39,176.37,0.0381779]